[Event "Titled Tuesday Blitz March 08 Early 2022"]
[White "Budrewicz, Krzysztof"]
[Black "Petrova, Irina"]
[WhiteFideId "1127950"]
[BlackFideId "14124122"]
[WhiteElo "2248"]
[BlackElo "1993"]
[Result "1-0"]
[Round "11"]
[TimeControl "180+1"]
[Date "2022.03.09"]
[WhiteClock "0:01:11"]
[BlackClock "0:00:09"]

1. d4 {[%clk 0:03:00]}  d6 {[%clk 0:03:00]} 2. Nf3 {[%clk 0:02:57]}  g6 {[%clk 0:03:00]} 3. c4 {[%clk 0:02:57]}  Bg7 {[%clk 0:02:59]} 4. Nc3 {[%clk 0:02:58]}  Nc6 {[%clk 0:02:57]} 5. h3 {[%clk 0:02:56]}  e5 {[%clk 0:02:55]} 6. d5 {[%clk 0:02:56]}  Nce7 {[%clk 0:02:54]} 7. e4 {[%clk 0:02:56]}  f5 {[%clk 0:02:47]} 8. exf5 {[%clk 0:02:54]}  Nxf5 {[%clk 0:02:39]} 9. g4 {[%clk 0:02:52]}  Nd4 {[%clk 0:02:36]} 10. Nxd4 {[%clk 0:02:51]}  exd4 {[%clk 0:02:37]} 11. Ne4 {[%clk 0:02:51]}  Ne7 {[%clk 0:02:24]} 12. Bg2 {[%clk 0:02:49]}  O-O {[%clk 0:02:23]} 13. O-O {[%clk 0:02:49]}  Bd7 {[%clk 0:02:07]} 14. b3 {[%clk 0:02:46]}  c5 {[%clk 0:02:01]} 15. Bg5 {[%clk 0:02:28]}  h6 {[%clk 0:01:44]} 16. Bh4 {[%clk 0:02:26]}  Be8 {[%clk 0:01:28]} 17. Bg3 {[%clk 0:02:24]}  Nc8 {[%clk 0:01:28]} 18. f4 {[%clk 0:02:19]}  b5 {[%clk 0:01:24]} 19. f5 {[%clk 0:02:14]}  bxc4 {[%clk 0:01:20]} 20. bxc4 {[%clk 0:02:13]}  gxf5 {[%clk 0:01:17]} 21. gxf5 {[%clk 0:02:13]}  Be5 {[%clk 0:01:08]} 22. Bxe5 {[%clk 0:02:07]}  dxe5 {[%clk 0:01:08]} 23. Nxc5 {[%clk 0:02:07]}  Bf7 {[%clk 0:00:35]} 24. f6 {[%clk 0:01:58]}  Kh7 {[%clk 0:00:32]} 25. Be4+ {[%clk 0:01:55]}  Kh8 {[%clk 0:00:32]} 26. Qd2 {[%clk 0:01:53]}  Rg8+ {[%clk 0:00:31]} 27. Kh2 {[%clk 0:01:52]}  Qf8 {[%clk 0:00:30]} 28. Ne6 {[%clk 0:01:50]}  Bxe6 {[%clk 0:00:27]} 29. dxe6 {[%clk 0:01:50]}  Nd6 {[%clk 0:00:27]} 30. Bxa8 {[%clk 0:01:41]}  Nxc4 {[%clk 0:00:19]} 31. Qc1 {[%clk 0:01:30]}  Ne3 {[%clk 0:00:17]} 32. Be4 {[%clk 0:01:23]}  Nxf1+ {[%clk 0:00:15]} 33. Qxf1 {[%clk 0:01:23]}  Rg5 {[%clk 0:00:13]} 34. f7 {[%clk 0:01:19]}  Kg7 {[%clk 0:00:10]} 35. Qf2 {[%clk 0:01:13]}  d3 {[%clk 0:00:10]} 36. Rf1 {[%clk 0:01:12]}  d2 {[%clk 0:00:09]} 37. Qf6# {[%clk 0:01:11]} 1-0


[Site "https://www.chess.com"]

[Event "Titled Tuesday Blitz March 08 Early 2022"]
[White "Clawitter, Craig"]
[Black "Hoffmann, Asa"]
[WhiteFideId "2023105"]
[BlackFideId "2001470"]
[WhiteElo "2280"]
[BlackElo "2117"]
[Result "0-1"]
[Round "11"]
[TimeControl "180+1"]
[Date "2022.03.09"]
[WhiteClock "0:00:07"]
[BlackClock "0:01:31"]

1. e4 {[%clk 0:03:00]}  d6 {[%clk 0:02:59]} 2. d4 {[%clk 0:03:00]}  Nf6 {[%clk 0:02:58]} 3. Nc3 {[%clk 0:02:57]}  c6 {[%clk 0:02:57]} 4. f4 {[%clk 0:02:56]}  Qa5 {[%clk 0:02:57]} 5. Nf3 {[%clk 0:02:55]}  Nxe4 {[%clk 0:02:52]} 6. Bd2 {[%clk 0:02:56]}  Nxd2 {[%clk 0:02:49]} 7. Qxd2 {[%clk 0:02:57]}  Bf5 {[%clk 0:02:48]} 8. Bc4 {[%clk 0:02:52]}  e6 {[%clk 0:02:47]} 9. O-O-O {[%clk 0:02:48]}  Nd7 {[%clk 0:02:45]} 10. Kb1 {[%clk 0:02:46]}  d5 {[%clk 0:02:45]} 11. Bd3 {[%clk 0:02:43]}  Bb4 {[%clk 0:02:41]} 12. Bxf5 {[%clk 0:02:36]}  Bxc3 {[%clk 0:02:41]} 13. bxc3 {[%clk 0:02:29]}  exf5 {[%clk 0:02:40]} 14. Rhe1+ {[%clk 0:02:21]}  Kf8 {[%clk 0:02:39]} 15. Ne5 {[%clk 0:02:03]}  Nf6 {[%clk 0:02:39]} 16. Re3 {[%clk 0:01:47]}  Ne4 {[%clk 0:02:38]} 17. Qe1 {[%clk 0:01:47]}  f6 {[%clk 0:02:32]} 18. Nd7+ {[%clk 0:01:44]}  Kf7 {[%clk 0:02:25]} 19. Nc5 {[%clk 0:01:42]}  Rhe8 {[%clk 0:02:13]} 20. g4 {[%clk 0:01:36]}  Nxc5 {[%clk 0:02:11]} 21. dxc5 {[%clk 0:01:31]}  Qxc5 {[%clk 0:02:11]} 22. Rdd3 {[%clk 0:01:26]}  fxg4 {[%clk 0:02:07]} 23. f5 {[%clk 0:01:23]}  Rad8 {[%clk 0:01:48]} 24. Re6 {[%clk 0:01:09]}  d4 {[%clk 0:01:42]} 25. cxd4 {[%clk 0:01:08]}  Qxf5 {[%clk 0:01:39]} 26. Rxe8 {[%clk 0:00:34]}  Rxe8 {[%clk 0:01:39]} 27. Qb4 {[%clk 0:00:33]}  Qb5 {[%clk 0:01:38]} 28. Qxb5 {[%clk 0:00:34]}  cxb5 {[%clk 0:01:38]} 29. Rb3 {[%clk 0:00:28]}  a6 {[%clk 0:01:37]} 30. a4 {[%clk 0:00:28]}  bxa4 {[%clk 0:01:34]} 31. Rxb7+ {[%clk 0:00:27]}  Re7 {[%clk 0:01:34]} 32. Rb6 {[%clk 0:00:24]}  f5 {[%clk 0:01:33]} 33. d5 {[%clk 0:00:20]}  f4 {[%clk 0:01:33]} 34. d6 {[%clk 0:00:20]}  Rd7 {[%clk 0:01:33]} 35. c4 {[%clk 0:00:19]}  f3 {[%clk 0:01:32]} 36. c5 {[%clk 0:00:06]}  f2 {[%clk 0:01:31]} 37. c6 {[%clk 0:00:07]}  f1=Q+ {[%clk 0:01:31]} 0-1


[Site "https://www.chess.com"]

[Event "Titled Tuesday Blitz March 08 Early 2022"]
[White "Costachi, Mihnea"]
[Black "Mirzoev, Azer"]
[WhiteFideId "1217518"]
[BlackFideId "13400304"]
[WhiteElo "2464"]
[BlackElo "2525"]
[Result "1-0"]
[Round "11"]
[TimeControl "180+1"]
[Date "2022.03.08"]
[WhiteClock "0:01:52"]
[BlackClock "0:00:20"]

1. d4 {[%clk 0:03:00]}  d5 {[%clk 0:02:59]} 2. c4 {[%clk 0:03:01]}  c6 {[%clk 0:02:58]} 3. Nc3 {[%clk 0:03:00]}  Nf6 {[%clk 0:02:59]} 4. Nf3 {[%clk 0:03:01]}  dxc4 {[%clk 0:02:59]} 5. e4 {[%clk 0:03:01]}  b5 {[%clk 0:02:59]} 6. Be2 {[%clk 0:03:02]}  e6 {[%clk 0:02:58]} 7. O-O {[%clk 0:03:02]}  Bb7 {[%clk 0:02:58]} 8. b3 {[%clk 0:03:01]}  cxb3 {[%clk 0:02:58]} 9. d5 {[%clk 0:02:57]}  exd5 {[%clk 0:02:56]} 10. exd5 {[%clk 0:02:57]}  Nxd5 {[%clk 0:02:55]} 11. Qxb3 {[%clk 0:02:54]}  Be7 {[%clk 0:02:44]} 12. Rd1 {[%clk 0:02:39]}  O-O {[%clk 0:02:38]} 13. Bb2 {[%clk 0:02:34]}  a6 {[%clk 0:00:41]} 14. a4 {[%clk 0:02:29]}  b4 {[%clk 0:00:38]} 15. Bc4 {[%clk 0:02:29]}  a5 {[%clk 0:00:36]} 16. Nxd5 {[%clk 0:02:28]}  cxd5 {[%clk 0:00:35]} 17. Bxd5 {[%clk 0:02:26]}  Bxd5 {[%clk 0:00:34]} 18. Rxd5 {[%clk 0:02:27]}  Qc7 {[%clk 0:00:32]} 19. Rc1 {[%clk 0:02:25]}  Qb7 {[%clk 0:00:32]} 20. Rb5 {[%clk 0:02:21]}  Qa6 {[%clk 0:00:27]} 21. Qd5 {[%clk 0:01:53]}  Nd7 {[%clk 0:00:20]} 22. Qxd7 {[%clk 0:01:52]} 1-0


[Site "https://www.chess.com"]

[Event "Titled Tuesday Blitz March 08 Early 2022"]
[White "Csonka, Balazs"]
[Black "Kushko, Dmitriy"]
[WhiteFideId "742910"]
[BlackFideId "14162261"]
[WhiteElo "2404"]
[BlackElo "2225"]
[Result "1/2-1/2"]
[Round "11"]
[TimeControl "180+1"]
[Date "2022.03.09"]
[WhiteClock "0:00:04"]
[BlackClock "0:00:12"]

1. d4 {[%clk 0:03:00]}  g6 {[%clk 0:02:59]} 2. e4 {[%clk 0:02:57]}  d6 {[%clk 0:02:59]} 3. c4 {[%clk 0:02:56]}  Bg7 {[%clk 0:02:58]} 4. Nc3 {[%clk 0:02:56]}  Nf6 {[%clk 0:02:58]} 5. Be2 {[%clk 0:02:54]}  O-O {[%clk 0:02:58]} 6. Nf3 {[%clk 0:02:54]}  e5 {[%clk 0:02:58]} 7. Be3 {[%clk 0:02:55]}  Ng4 {[%clk 0:02:57]} 8. Bg5 {[%clk 0:02:54]}  f6 {[%clk 0:02:58]} 9. Bh4 {[%clk 0:02:55]}  g5 {[%clk 0:02:57]} 10. Bg3 {[%clk 0:02:55]}  Nh6 {[%clk 0:02:58]} 11. c5 {[%clk 0:02:55]}  Nc6 {[%clk 0:02:54]} 12. cxd6 {[%clk 0:02:43]}  cxd6 {[%clk 0:02:53]} 13. dxe5 {[%clk 0:02:38]}  dxe5 {[%clk 0:02:52]} 14. O-O {[%clk 0:02:35]}  Be6 {[%clk 0:02:49]} 15. Qxd8 {[%clk 0:01:45]}  Rfxd8 {[%clk 0:02:46]} 16. Rfd1 {[%clk 0:01:45]}  g4 {[%clk 0:02:38]} 17. Nd2 {[%clk 0:01:41]}  Nd4 {[%clk 0:02:06]} 18. Bc4 {[%clk 0:01:35]}  Kf7 {[%clk 0:01:56]} 19. Bxe6+ {[%clk 0:01:12]}  Kxe6 {[%clk 0:01:57]} 20. Nc4 {[%clk 0:01:12]}  Nf7 {[%clk 0:01:49]} 21. Kf1 {[%clk 0:00:55]}  h5 {[%clk 0:01:48]} 22. Ne2 {[%clk 0:00:42]}  Nc6 {[%clk 0:01:09]} 23. f3 {[%clk 0:00:33]}  Bh6 {[%clk 0:01:06]} 24. Bf2 {[%clk 0:00:29]}  b6 {[%clk 0:00:52]} 25. Ng3 {[%clk 0:00:27]}  gxf3 {[%clk 0:00:46]} 26. gxf3 {[%clk 0:00:27]}  Bf4 {[%clk 0:00:28]} 27. Nxh5 {[%clk 0:00:26]}  Bxh2 {[%clk 0:00:28]} 28. Ke2 {[%clk 0:00:17]}  Bf4 {[%clk 0:00:23]} 29. Rxd8 {[%clk 0:00:07]}  Rxd8 {[%clk 0:00:22]} 30. Rd1 {[%clk 0:00:07]}  Rxd1 {[%clk 0:00:21]} 31. Kxd1 {[%clk 0:00:08]}  Nb4 {[%clk 0:00:15]} 32. a3 {[%clk 0:00:03]}  Nd3 {[%clk 0:00:15]} 33. Ke2 {[%clk 0:00:04]}  Nc1+ {[%clk 0:00:12]} 34. Kd1 {[%clk 0:00:03]}  Nd3 {[%clk 0:00:12]} 35. Ke2 {[%clk 0:00:04]}  Nc1+ {[%clk 0:00:12]} 36. Kd1 {[%clk 0:00:04]}  Nd3 {[%clk 0:00:12]} 1/2-1/2


[Site "https://www.chess.com"]

[Event "Titled Tuesday Blitz March 08 Early 2022"]
[White "Derraugh, Geordie"]
[Black "Estrada Nieto, Julian"]
[WhiteFideId "2603950"]
[BlackFideId "5101018"]
[WhiteElo "2116"]
[BlackElo "2246"]
[Result "1-0"]
[Round "11"]
[TimeControl "180+1"]
[Date "2022.03.09"]
[WhiteClock "0:00:13"]
[BlackClock "0:00:15"]

1. e4 {[%clk 0:03:00]}  e5 {[%clk 0:02:59]} 2. Nf3 {[%clk 0:03:00]}  Nc6 {[%clk 0:03:00]} 3. d4 {[%clk 0:02:59]}  exd4 {[%clk 0:02:59]} 4. Bc4 {[%clk 0:02:59]}  Bc5 {[%clk 0:02:58]} 5. c3 {[%clk 0:02:59]}  d6 {[%clk 0:02:58]} 6. cxd4 {[%clk 0:02:59]}  Bb6 {[%clk 0:02:59]} 7. O-O {[%clk 0:02:55]}  Nf6 {[%clk 0:02:59]} 8. Nc3 {[%clk 0:02:55]}  O-O {[%clk 0:02:59]} 9. Bg5 {[%clk 0:02:55]}  h6 {[%clk 0:02:59]} 10. Bh4 {[%clk 0:02:54]}  Bg4 {[%clk 0:02:58]} 11. Bxf6 {[%clk 0:02:05]}  Qxf6 {[%clk 0:02:56]} 12. Nd5 {[%clk 0:02:05]}  Qg6 {[%clk 0:02:52]} 13. Nxb6 {[%clk 0:02:04]}  axb6 {[%clk 0:02:51]} 14. d5 {[%clk 0:02:02]}  Bxf3 {[%clk 0:02:25]} 15. Qxf3 {[%clk 0:02:02]}  Ne5 {[%clk 0:02:25]} 16. Qe2 {[%clk 0:01:56]}  Rfe8 {[%clk 0:02:22]} 17. f3 {[%clk 0:01:56]}  Qf6 {[%clk 0:02:13]} 18. Bb5 {[%clk 0:01:55]}  Re7 {[%clk 0:02:12]} 19. Rfc1 {[%clk 0:01:54]}  Ng6 {[%clk 0:02:09]} 20. g3 {[%clk 0:01:48]}  h5 {[%clk 0:02:04]} 21. Rc3 {[%clk 0:01:39]}  Ra5 {[%clk 0:01:51]} 22. a4 {[%clk 0:01:39]}  h4 {[%clk 0:01:44]} 23. Rac1 {[%clk 0:01:33]}  hxg3 {[%clk 0:01:42]} 24. hxg3 {[%clk 0:01:32]}  Qg5 {[%clk 0:01:33]} 25. Kf2 {[%clk 0:01:25]}  Qh6 {[%clk 0:01:26]} 26. Kg2 {[%clk 0:01:05]}  Qg5 {[%clk 0:01:25]} 27. Qe3 {[%clk 0:01:03]}  Qf6 {[%clk 0:01:16]} 28. Rxc7 {[%clk 0:00:38]}  Rxc7 {[%clk 0:01:07]} 29. Rxc7 {[%clk 0:00:39]}  Qxb2+ {[%clk 0:01:07]} 30. Qf2 {[%clk 0:00:40]}  Qxf2+ {[%clk 0:00:56]} 31. Kxf2 {[%clk 0:00:39]}  Ra7 {[%clk 0:00:55]} 32. Bc6 {[%clk 0:00:31]}  Ne5 {[%clk 0:00:54]} 33. Rxb7 {[%clk 0:00:29]}  Ra6 {[%clk 0:00:45]} 34. Bb5 {[%clk 0:00:27]}  Ra8 {[%clk 0:00:43]} 35. Rxb6 {[%clk 0:00:27]}  Rc8 {[%clk 0:00:43]} 36. Rxd6 {[%clk 0:00:19]}  Rc2+ {[%clk 0:00:42]} 37. Be2 {[%clk 0:00:17]}  Ra2 {[%clk 0:00:28]} 38. Ra6 {[%clk 0:00:17]}  Nd3+ {[%clk 0:00:24]} 39. Ke3 {[%clk 0:00:17]}  Nb4 {[%clk 0:00:24]} 40. Ra8+ {[%clk 0:00:17]}  Kh7 {[%clk 0:00:23]} 41. a5 {[%clk 0:00:17]}  Nc2+ {[%clk 0:00:22]} 42. Kf4 {[%clk 0:00:16]}  Nb4 {[%clk 0:00:18]} 43. Bb5 {[%clk 0:00:15]}  f6 {[%clk 0:00:18]} 44. a6 {[%clk 0:00:15]}  Ra3 {[%clk 0:00:14]} 45. a7 {[%clk 0:00:14]}  g5+ {[%clk 0:00:14]} 46. Kg4 {[%clk 0:00:14]}  Nd3 {[%clk 0:00:13]} 47. Bxd3 {[%clk 0:00:13]}  Rxd3 {[%clk 0:00:12]} 48. Rh8+ {[%clk 0:00:13]}  Kxh8 {[%clk 0:00:11]} 49. a8=Q+ {[%clk 0:00:13]}  Kg7 {[%clk 0:00:12]} 50. Qb7+ {[%clk 0:00:13]}  Kg6 {[%clk 0:00:11]} 51. Qd7 {[%clk 0:00:10]}  Re3 {[%clk 0:00:08]} 52. d6 {[%clk 0:00:09]}  Rd3 {[%clk 0:00:08]} 53. Qf5+ {[%clk 0:00:09]}  Kg7 {[%clk 0:00:07]} 54. d7 {[%clk 0:00:09]}  Kf7 {[%clk 0:00:07]} 55. Qd5+ {[%clk 0:00:08]}  Rxd5 {[%clk 0:00:07]} 56. exd5 {[%clk 0:00:09]}  Ke7 {[%clk 0:00:07]} 57. Kf5 {[%clk 0:00:10]}  Kxd7 {[%clk 0:00:07]} 58. Kxf6 {[%clk 0:00:11]}  Kd6 {[%clk 0:00:08]} 59. Kxg5 {[%clk 0:00:11]}  Kxd5 {[%clk 0:00:09]} 60. Kf6 {[%clk 0:00:11]}  Kd4 {[%clk 0:00:10]} 61. g4 {[%clk 0:00:11]}  Ke3 {[%clk 0:00:11]} 62. g5 {[%clk 0:00:12]}  Kf4 {[%clk 0:00:11]} 63. g6 {[%clk 0:00:13]}  Kxf3 {[%clk 0:00:12]} 64. g7 {[%clk 0:00:14]}  Kf4 {[%clk 0:00:13]} 65. g8=Q {[%clk 0:00:13]}  Ke4 {[%clk 0:00:14]} 66. Qg5 {[%clk 0:00:13]}  Kd4 {[%clk 0:00:15]} 67. Qe5+ {[%clk 0:00:13]} 1-0


[Site "https://www.chess.com"]

[Event "Titled Tuesday Blitz March 08 Early 2022"]
[White "Dolzhykova, Kateryna"]
[Black "Martin Duque, Jesus"]
[WhiteFideId "14113414"]
[BlackFideId "2208954"]
[WhiteElo "2184"]
[BlackElo "2243"]
[Result "1-0"]
[Round "11"]
[TimeControl "180+1"]
[Date "2022.03.09"]
[WhiteClock "0:01:11"]
[BlackClock "0:00:49"]

1. e4 {[%clk 0:03:00]}  c5 {[%clk 0:02:58]} 2. Nf3 {[%clk 0:02:59]}  b6 {[%clk 0:02:58]} 3. c4 {[%clk 0:02:36]}  Bb7 {[%clk 0:02:59]} 4. Bd3 {[%clk 0:02:33]}  g6 {[%clk 0:02:57]} 5. O-O {[%clk 0:02:33]}  Bg7 {[%clk 0:02:58]} 6. Nc3 {[%clk 0:02:32]}  Nc6 {[%clk 0:02:58]} 7. a3 {[%clk 0:02:30]}  e6 {[%clk 0:02:58]} 8. Bb1 {[%clk 0:02:27]}  Nge7 {[%clk 0:02:58]} 9. d3 {[%clk 0:02:27]}  d6 {[%clk 0:02:57]} 10. Be3 {[%clk 0:02:27]}  Nd4 {[%clk 0:02:54]} 11. b4 {[%clk 0:02:21]}  Qd7 {[%clk 0:02:53]} 12. Bxd4 {[%clk 0:02:16]}  cxd4 {[%clk 0:02:53]} 13. Ne2 {[%clk 0:02:15]}  e5 {[%clk 0:02:53]} 14. Ba2 {[%clk 0:02:14]}  O-O {[%clk 0:02:52]} 15. Rc1 {[%clk 0:02:14]}  Kh8 {[%clk 0:02:52]} 16. c5 {[%clk 0:02:12]}  dxc5 {[%clk 0:02:52]} 17. bxc5 {[%clk 0:02:13]}  b5 {[%clk 0:02:51]} 18. Ng5 {[%clk 0:02:01]}  Nc6 {[%clk 0:02:49]} 19. f4 {[%clk 0:02:00]}  h6 {[%clk 0:02:44]} 20. Nf3 {[%clk 0:01:54]}  Kh7 {[%clk 0:02:42]} 21. Bd5 {[%clk 0:01:45]}  exf4 {[%clk 0:02:41]} 22. Nxf4 {[%clk 0:01:45]}  Rae8 {[%clk 0:02:40]} 23. Rb1 {[%clk 0:01:36]}  a6 {[%clk 0:02:40]} 24. a4 {[%clk 0:01:36]}  b4 {[%clk 0:02:33]} 25. Bxc6 {[%clk 0:01:35]}  Bxc6 {[%clk 0:02:30]} 26. Rxb4 {[%clk 0:01:35]}  Bxa4 {[%clk 0:02:31]} 27. Qxa4 {[%clk 0:01:34]}  Qc7 {[%clk 0:02:29]} 28. Nd5 {[%clk 0:01:29]}  Qxc5 {[%clk 0:02:29]} 29. Qxa6 {[%clk 0:01:27]}  f5 {[%clk 0:02:28]} 30. Rc4 {[%clk 0:01:19]}  Ra8 {[%clk 0:02:18]} 31. Qxa8 {[%clk 0:01:15]}  Qxc4 {[%clk 0:02:18]} 32. Qxf8 {[%clk 0:01:11]}  Qxd5 {[%clk 0:02:19]} 33. Qxg7+ {[%clk 0:01:11]}  Kxg7 {[%clk 0:00:50]} 34. exd5 {[%clk 0:01:12]}  Kf6 {[%clk 0:00:49]} 35. Re1 {[%clk 0:01:11]} 1-0


[Site "https://www.chess.com"]

[Event "Titled Tuesday Blitz March 08 Early 2022"]
[White "Fedoseev, Vladimir"]
[Black "Martinez Alcantara, Jose Eduardo"]
[WhiteFideId "24130737"]
[BlackFideId "3805662"]
[WhiteElo "2726"]
[BlackElo "2690"]
[Result "1-0"]
[Round "11"]
[TimeControl "180+1"]
[Date "2022.03.08"]
[WhiteClock "0:00:12"]
[BlackClock "0:00:03"]

1. e4 {[%clk 0:03:00]}  c5 {[%clk 0:02:58]} 2. Nf3 {[%clk 0:03:00]}  d6 {[%clk 0:02:59]} 3. d4 {[%clk 0:03:00]}  cxd4 {[%clk 0:03:00]} 4. Nxd4 {[%clk 0:03:01]}  Nf6 {[%clk 0:03:00]} 5. Nc3 {[%clk 0:03:01]}  Nc6 {[%clk 0:03:01]} 6. Bg5 {[%clk 0:03:00]}  e6 {[%clk 0:03:01]} 7. Qd2 {[%clk 0:03:00]}  a6 {[%clk 0:03:00]} 8. O-O-O {[%clk 0:02:59]}  Bd7 {[%clk 0:03:01]} 9. f4 {[%clk 0:02:59]}  Be7 {[%clk 0:02:58]} 10. Nb3 {[%clk 0:02:46]}  b5 {[%clk 0:02:34]} 11. Bxf6 {[%clk 0:02:45]}  gxf6 {[%clk 0:02:34]} 12. f5 {[%clk 0:02:39]}  Qb6 {[%clk 0:02:25]} 13. Kb1 {[%clk 0:02:37]}  h5 {[%clk 0:02:21]} 14. Bd3 {[%clk 0:02:13]}  Ne5 {[%clk 0:02:04]} 15. Ne2 {[%clk 0:02:08]}  a5 {[%clk 0:01:57]} 16. Nbd4 {[%clk 0:02:05]}  a4 {[%clk 0:01:55]} 17. a3 {[%clk 0:01:59]}  Rb8 {[%clk 0:01:51]} 18. c3 {[%clk 0:01:59]}  Bf8 {[%clk 0:01:12]} 19. Rhf1 {[%clk 0:01:46]}  Bh6 {[%clk 0:01:11]} 20. Qc2 {[%clk 0:01:46]}  Ke7 {[%clk 0:00:59]} 21. Nf4 {[%clk 0:01:38]}  Bxf4 {[%clk 0:00:56]} 22. Rxf4 {[%clk 0:01:37]}  Nxd3 {[%clk 0:00:52]} 23. fxe6 {[%clk 0:01:24]}  Nxf4 {[%clk 0:00:51]} 24. exd7 {[%clk 0:01:24]}  Ne6 {[%clk 0:00:34]} 25. Nf5+ {[%clk 0:01:13]}  Kxd7 {[%clk 0:00:34]} 26. Rxd6+ {[%clk 0:01:08]}  Qxd6 {[%clk 0:00:35]} 27. Nxd6 {[%clk 0:01:08]}  Kxd6 {[%clk 0:00:36]} 28. Qf2 {[%clk 0:01:08]}  Rhg8 {[%clk 0:00:25]} 29. g3 {[%clk 0:00:58]}  Rb7 {[%clk 0:00:16]} 30. Qxf6 {[%clk 0:00:57]}  Rg5 {[%clk 0:00:15]} 31. Kc2 {[%clk 0:00:51]}  Re5 {[%clk 0:00:15]} 32. Kd3 {[%clk 0:00:51]}  Rd7 {[%clk 0:00:15]} 33. Ke3 {[%clk 0:00:50]}  Rc5 {[%clk 0:00:14]} 34. Qh8 {[%clk 0:00:46]}  Re7 {[%clk 0:00:12]} 35. Qb8+ {[%clk 0:00:44]}  Kd7 {[%clk 0:00:08]} 36. Qb6 {[%clk 0:00:42]}  Ke8 {[%clk 0:00:04]} 37. Qb8+ {[%clk 0:00:37]}  Nd8 {[%clk 0:00:04]} 38. Kf3 {[%clk 0:00:32]}  Rce5 {[%clk 0:00:03]} 39. h4 {[%clk 0:00:30]}  f5 {[%clk 0:00:04]} 40. exf5 {[%clk 0:00:25]}  Rxf5+ {[%clk 0:00:05]} 41. Kg2 {[%clk 0:00:25]}  Kf7 {[%clk 0:00:05]} 42. Qxd8 {[%clk 0:00:21]}  Re2+ {[%clk 0:00:06]} 43. Kh3 {[%clk 0:00:20]}  Rxb2 {[%clk 0:00:01]} 44. Qd7+ {[%clk 0:00:20]}  Kf6 {[%clk 0:00:02]} 45. Qd4+ {[%clk 0:00:16]}  Kg6 {[%clk 0:00:01]} 46. Qd6+ {[%clk 0:00:14]}  Kf7 {[%clk 0:00:01]} 47. c4 {[%clk 0:00:13]}  Rff2 {[%clk 0:00:01]} 48. Qd5+ {[%clk 0:00:13]}  Ke7 {[%clk 0:00:01]} 49. Qxh5 {[%clk 0:00:13]}  bxc4 {[%clk 0:00:02]} 50. Qc5+ {[%clk 0:00:12]}  Kf6 {[%clk 0:00:03]} 51. Qxc4 {[%clk 0:00:13]}  Rh2+ {[%clk 0:00:02]} 52. Kg4 {[%clk 0:00:13]}  Rhd2 {[%clk 0:00:03]} 53. Qxa4 {[%clk 0:00:13]}  Rbc2 {[%clk 0:00:03]} 54. Qf4+ {[%clk 0:00:13]}  Ke6 {[%clk 0:00:03]} 55. h5 {[%clk 0:00:13]}  Kd5 {[%clk 0:00:04]} 56. Qf5+ {[%clk 0:00:12]}  Kc4 {[%clk 0:00:05]} 57. h6 {[%clk 0:00:12]}  Rd4+ {[%clk 0:00:05]} 58. Kh3 {[%clk 0:00:13]}  Rdd2 {[%clk 0:00:03]} 59. h7 {[%clk 0:00:12]}  Rh2+ {[%clk 0:00:03]} 60. Kg4 {[%clk 0:00:13]}  Kb3 {[%clk 0:00:04]} 61. Qd3+ {[%clk 0:00:12]}  Kb2 {[%clk 0:00:02]} 62. Qd4+ {[%clk 0:00:12]}  Kxa3 {[%clk 0:00:03]} 63. h8=Q {[%clk 0:00:12]} 1-0


[Site "https://www.chess.com"]

[Event "Titled Tuesday Blitz March 08 Early 2022"]
[White "Fernandez Siles, Luis"]
[Black "Osmonbekov, Talaibek"]
[WhiteFideId "2209420"]
[BlackFideId "2017253"]
[WhiteElo "2212"]
[BlackElo "2135"]
[Result "0-1"]
[Round "11"]
[TimeControl "180+1"]
[Date "2022.03.09"]
[WhiteClock "0:00:06"]
[BlackClock "0:00:04"]

1. b4 {[%clk 0:03:00]}  e5 {[%clk 0:02:59]} 2. Bb2 {[%clk 0:03:00]}  d6 {[%clk 0:02:59]} 3. c4 {[%clk 0:02:58]}  f5 {[%clk 0:02:59]} 4. g3 {[%clk 0:02:57]}  Nf6 {[%clk 0:02:59]} 5. Bg2 {[%clk 0:02:58]}  Be7 {[%clk 0:03:00]} 6. d3 {[%clk 0:02:57]}  O-O {[%clk 0:03:00]} 7. Nf3 {[%clk 0:02:57]}  Qe8 {[%clk 0:02:58]} 8. Nc3 {[%clk 0:02:48]}  c6 {[%clk 0:02:57]} 9. O-O {[%clk 0:02:44]}  Qh5 {[%clk 0:02:56]} 10. e3 {[%clk 0:02:45]}  Be6 {[%clk 0:02:44]} 11. Nd2 {[%clk 0:02:40]}  Qh6 {[%clk 0:02:40]} 12. b5 {[%clk 0:02:24]}  Nbd7 {[%clk 0:02:31]} 13. bxc6 {[%clk 0:02:20]}  bxc6 {[%clk 0:02:30]} 14. Qe2 {[%clk 0:02:00]}  Rab8 {[%clk 0:02:23]} 15. Ba3 {[%clk 0:01:55]}  Rb6 {[%clk 0:01:29]} 16. f4 {[%clk 0:01:49]}  Ra6 {[%clk 0:01:21]} 17. Bb2 {[%clk 0:01:42]}  Nc5 {[%clk 0:01:12]} 18. d4 {[%clk 0:01:28]}  Ncd7 {[%clk 0:01:01]} 19. c5 {[%clk 0:01:22]}  Rb8 {[%clk 0:00:37]} 20. Rab1 {[%clk 0:01:12]}  Ra5 {[%clk 0:00:34]} 21. cxd6 {[%clk 0:01:11]}  Bxd6 {[%clk 0:00:33]} 22. dxe5 {[%clk 0:01:00]}  Ng4 {[%clk 0:00:22]} 23. h3 {[%clk 0:00:56]}  Ngxe5 {[%clk 0:00:21]} 24. fxe5 {[%clk 0:00:48]}  Bxe5 {[%clk 0:00:22]} 25. Nc4 {[%clk 0:00:42]}  Bxc4 {[%clk 0:00:09]} 26. Qxc4+ {[%clk 0:00:43]}  Kh8 {[%clk 0:00:10]} 27. Qf7 {[%clk 0:00:34]}  Qxe3+ {[%clk 0:00:09]} 28. Kh1 {[%clk 0:00:32]}  Qxg3 {[%clk 0:00:09]} 29. Kg1 {[%clk 0:00:25]}  Qh2+ {[%clk 0:00:09]} 30. Kf2 {[%clk 0:00:25]}  Nf6 {[%clk 0:00:10]} 31. Ne2 {[%clk 0:00:20]}  Bxb2 {[%clk 0:00:07]} 32. Rxb2 {[%clk 0:00:20]}  Rxb2 {[%clk 0:00:06]} 33. Qf8+ {[%clk 0:00:20]}  Ng8 {[%clk 0:00:06]} 34. Rg1 {[%clk 0:00:15]}  Raxa2 {[%clk 0:00:06]} 35. Kf1 {[%clk 0:00:10]}  Rxe2 {[%clk 0:00:05]} 36. Qxg7+ {[%clk 0:00:07]}  Kxg7 {[%clk 0:00:05]} 37. Bd5+ {[%clk 0:00:07]}  Kf6 {[%clk 0:00:05]} 38. Rg6+ {[%clk 0:00:06]}  hxg6 {[%clk 0:00:04]} 0-1


[Site "https://www.chess.com"]